bitfinex/quotes_BTCUSD_20240731
["timestamp","ask_amount","ask_price","bid_price","bid_amount"]
[1722458706166,0.011,64735.0,64733.0,0.01528833]
[1722458707057,0.00214561,64734.0,64733.0,0.01528833]
[1722458707615,0.84929973,64734.0,64733.0,0.01528833]
[1722458707815,0.84929973,64734.0,64733.0,0.01628833]
[1722458708014,1.15825573,64734.0,64733.0,0.01628833]
[1722458708257,1.15825573,64734.0,64733.0,0.01528833]
[1722458708434,1.20427287,64734.0,64733.0,0.01528833]
[1722458708767,1.21627287,64734.0,64733.0,0.01628833]
[1722458708917,1.68078059,64734.0,64733.0,0.01628833]
[1722458709123,1.72500978,64734.0,64733.0,0.001]
[1722458709450,1.86724152,64734.0,64733.0,0.001]
[1722458709646,2.00624152,64734.0,64733.0,0.001]
[1722458709848,1.081465,64727.0,64726.0,0.00869]
[1722458710025,1.19846086,64727.0,64726.0,0.00869]
[1722458710226,1.40402972,64727.0,64726.0,0.00869]
[1722458710494,1.40402972,64727.0,64716.0,0.01528833]
[1722458710495,0.772592,64717.0,64716.0,0.01528833]
[1722458710704,0.836192,64717.0,64716.0,0.01528833]
[1722458710913,1.145229,64717.0,64716.0,0.01528833]
[1722458711090,1.18746074,64717.0,64716.0,0.01528833]
[1722458711246,1.145229,64717.0,64716.0,0.01528833]
[1722458711880,1.19124614,64717.0,64716.0,0.01528833]
[1722458712080,1.20224614,64717.0,64716.0,0.01528833]
[1722458712279,0.011,64717.0,64716.0,0.01528833]
[1722458712837,0.03523424,64717.0,64716.0,0.01528833]
[1722458713044,0.04923424,64717.0,64716.0,0.22784005]
[1722458713449,0.025,64717.0,64716.0,0.22784005]
[1722458713873,0.308961,64733.0,64716.0,0.22684005]
[1722458714073,0.1202694,64732.0,64717.0,0.14955172]
[1722458714313,0.1202694,64731.0,64717.0,0.14955172]
[1722458714535,0.0754,64741.0,64717.0,0.15264193]
[1722458714738,0.12214709,64740.0,64717.0,0.15264193]
[1722458714939,0.12214709,64740.0,64718.0,0.1]
[1722458715139,0.154467,64739.0,64719.0,0.22740576]
[1722458715351,0.48340903,64751.0,64726.0,0.062]
[1722458715564,0.005,64731.0,64727.0,0.15419546]
[1722458715741,0.005,64731.0,64727.0,0.15264126]
[1722458715917,0.308893,64748.0,64727.0,0.14955172]
[1722458715918,0.00214561,64744.0,64727.0,0.14955172]
[1722458716120,0.154475,64736.0,64727.0,0.14955172]
[1722458716317,0.12298152,64735.0,64727.0,0.14955172]
[1722458716530,0.00214561,64735.0,64727.0,0.14955172]
[1722458716735,0.14336818,64734.0,64727.0,0.14955172]
[1722458717015,0.002,64731.0,64727.0,0.14955172]
[1722458717211,0.154464,64740.0,64727.0,0.14955172]
[1722458717412,0.11910823,64739.0,64727.0,0.14955172]
[1722458717700,0.006,64735.0,64727.0,0.15055172]
[1722458717885,0.11696262,64734.0,64727.0,0.15055172]
[1722458718010,0.11696262,64733.0,64727.0,0.15055172]
[1722458718417,0.002,64734.0,64728.0,0.00308979]
[1722458718620,0.002,64734.0,64729.0,0.14955172]
[1722458718821,0.006,64735.0,64730.0,0.00308937]
[1722458719018,0.00214561,64750.0,64731.0,0.14955172]
[1722458719225,0.001,64733.0,64732.0,0.10308936]
[1722458719433,0.001,64733.0,64732.0,0.25264108]
[1722458719661,0.001,64733.0,64732.0,0.33154108]
[1722458720422,0.02522443,64733.0,64732.0,0.33154108]
[1722458720556,0.02422443,64733.0,64732.0,0.32845172]
[1722458721589,0.002,64733.0,64732.0,0.43415172]
[1722458722459,0.001,64733.0,64732.0,0.42715172]
[1722458722672,0.39301831,64756.0,64732.0,0.57163372]
[1722458722673,0.07476412,64756.0,64732.0,0.57163372]
[1722458722875,0.154434,64753.0,64733.0,0.17564086]
[1722458723098,0.2737196,64752.0,64733.0,0.19092919]
[1722458723289,0.18893156,64751.0,64733.0,0.19092919]
[1722458723504,0.18893156,64750.0,64733.0,0.18784005]
[1722458723680,0.19100946,64749.0,64733.0,0.18784005]
[1722458723880,0.12381265,64748.0,64733.0,0.18784005]
[1722458724078,0.12381265,64747.0,64734.0,0.00308914]
[1722458724348,0.308864,64754.0,64735.0,0.14955172]
[1722458724349,0.20072238,64746.0,64735.0,0.14955172]
[1722458724561,0.20072238,64746.0,64733.0,0.01628833]
[1722458724562,0.20831592,64745.0,64733.0,0.01628833]
[1722458724754,0.154462,64741.0,64734.0,0.14955172]
[1722458724961,0.07476412,64746.0,64733.0,0.01628833]
[1722458724962,0.07476412,64738.0,64733.0,0.01628833]
[1722458725260,0.19099963,64737.0,64733.0,0.01628833]
[1722458725462,0.27828765,64736.0,64733.0,0.01628833]
[1722458725673,0.12595826,64735.0,64733.0,0.01628833]
[1722458725860,0.12381265,64734.0,64733.0,0.01528833]
[1722458726206,0.12381265,64734.0,64733.0,0.16484005]
[1722458726881,0.12381265,64734.0,64733.0,0.17484005]
[1722458727344,0.12381265,64734.0,64733.0,0.26484005]
[1722458727781,0.12381265,64734.0,64733.0,0.26984005]
[1722458728210,0.001,64738.0,64733.0,0.27684005]
[1722458728452,0.02422551,64734.0,64733.0,0.12028833]
[1722458728676,0.00305862,64745.0,64734.0,0.0615]
[1722458728677,0.00091301,64745.0,64734.0,0.0615]
[1722458728899,0.18924421,64744.0,64734.0,0.0615]
[1722458729122,0.19138982,64743.0,64734.0,0.0615]
[1722458729318,0.19138982,64743.0,64733.0,0.12728833]
[1722458729319,0.308935,64739.0,64733.0,0.02728833]
[1722458729489,0.00091301,64745.0,64733.0,0.02728833]
[1722458729490,0.19138982,64738.0,64733.0,0.01528833]
[1722458729714,0.19138982,64737.0,64733.0,0.01528833]
[1722458729894,0.002,64734.0,64733.0,0.02928833]
[1722458730203,0.12606874,64734.0,64733.0,0.02928833]
[1722458730406,0.12506874,64734.0,64733.0,0.02228833]
[1722458731273,0.12506874,64734.0,64733.0,0.27484005]
[1722458731489,0.001,64734.0,64733.0,0.60662005]
[1722458731690,0.00091301,64745.0,64743.0,0.1]
[1722458731856,0.00091301,64745.0,64744.0,0.21784049]
[1722458732269,0.02513449,64745.0,64744.0,0.21784049]
[1722458732473,0.02513449,64745.0,64744.0,0.30034049]
[1722458732683,0.02513449,64745.0,64744.0,0.29725172]
[1722458732900,0.02513449,64745.0,64744.0,0.3003405]
[1722458733104,0.02513449,64745.0,64744.0,0.3233405]
[1722458733309,0.00091301,64745.0,64744.0,0.3233405]
[1722458733515,0.00091301,64745.0,64744.0,0.3253405]
[1722458734184,0.00091301,64745.0,64744.0,0.3233405]
[1722458734389,0.00091301,64745.0,64744.0,0.3263405]
[1722458734640,0.00091301,64745.0,64744.0,0.3233405]
[1722458734864,0.00091301,64745.0,64744.0,0.5777945]
[1722458735073,0.00191301,64745.0,64744.0,1.30237462]
[1722458735276,0.00191301,64745.0,64744.0,1.30437342]
[1722458735474,0.02699399,64773.0,64760.0,0.0631]
[1722458735475,0.154389,64772.0,64760.0,0.0631]
[1722458735702,0.12629498,64771.0,64761.0,0.14955172]
[1722458736207,0.18137899,64773.0,64761.0,0.14955172]
[1722458736208,0.02421456,64769.0,64761.0,0.14955172]
[1722458736419,0.12629498,64768.0,64761.0,0.14955172]
[1722458736625,0.02421456,64769.0,64761.0,0.14955172]
[1722458737212,0.02421456,64769.0,64762.0,0.00308794]
[1722458737391,0.308742,64779.0,64763.0,0.14955172]
[1722458737609,0.19352526,64778.0,64763.0,0.14955172]
[1722458737913,0.005,64771.0,64763.0,0.14955172]
[1722458738115,0.12886006,64770.0,64763.0,0.14955172]
[1722458738466,0.005,64771.0,64763.0,0.14955172]
[1722458738970,0.005,64771.0,64763.0,0.15055172]
[1722458739171,0.007,64778.0,64767.0,0.1]
[1722458739321,0.308703,64787.0,64769.0,0.0662]
[1722458739322,0.0092816,64787.0,64769.0,0.0662]
[1722458739530,0.012,64779.0,64770.0,0.22763917]
[1722458740200,0.308702,64788.0,64770.0,0.22763917]
[1722458740201,0.154352,64787.0,64770.0,0.22763917]
[1722458740339,0.154356,64785.0,64770.0,0.22763917]
[1722458740540,0.003,64771.0,64770.0,0.22763917]
[1722458740958,0.003,64771.0,64769.0,0.0662]
[1722458741166,0.157391,64771.0,64767.0,0.11528833]
[1722458741368,0.157391,64771.0,64768.0,0.14955172]
[1722458741369,0.12461564,64770.0,64768.0,0.14955172]
[1722458742208,0.12461564,64770.0,64769.0,0.001]
[1722458742419,0.12461564,64770.0,64768.0,0.14955172]
[1722458742420,0.27900864,64770.0,64768.0,0.14955172]
[1722458742617,0.27900864,64770.0,64767.0,0.11528833]
[1722458742618,0.154397,64768.0,64767.0,0.01528833]
[1722458742819,0.58995225,64768.0,64767.0,0.01528833]
[1722458743031,0.89874625,64768.0,64767.0,0.01528833]
[1722458744034,0.90774625,64768.0,64767.0,0.01628833]
[1722458744246,0.93196233,64768.0,64767.0,0.01628833]
[1722458744659,0.62316833,64768.0,64767.0,0.01628833]
[1722458744835,0.15783172,64768.0,64767.0,0.01628833]
[1722458745333,0.16283172,64768.0,64767.0,0.08368833]
[1722458745544,0.16283172,64768.0,64767.0,0.23324005]
[1722458745716,0.03821608,64768.0,64767.0,0.31514005]
[1722458746453,0.014,64768.0,64767.0,0.31514005]
[1722458747139,0.009,64768.0,64767.0,0.23224005]
[1722458747575,0.13342025,64768.0,64767.0,0.23224005]
[1722458747778,0.12442025,64768.0,64767.0,0.23124005]
[1722458747986,0.12442025,64768.0,64767.0,0.21595172]
[1722458748192,0.154402,64766.0,64762.0,0.1]
[1722458748393,0.12442025,64768.0,64762.0,0.01528833]
[1722458748394,0.12442025,64765.0,64762.0,0.01528833]
[1722458748613,0.12442025,64764.0,64762.0,0.01528833]
[1722458748821,0.58764725,64763.0,64762.0,0.01528833]
[1722458749028,0.12442025,64763.0,64762.0,0.01528833]
[1722458749239,0.27882925,64763.0,64762.0,0.01528833]
[1722458749493,0.28097486,64763.0,64762.0,0.01528833]
[1722458749921,0.58979286,64763.0,64762.0,0.01528833]
[1722458750117,0.89861086,64763.0,64762.0,0.01528833]
[1722458750319,0.58979286,64763.0,64762.0,0.01528833]
[1722458750725,0.90061086,64763.0,64762.0,0.01528833]
[1722458751137,0.59179286,64763.0,64762.0,0.01528833]
[1722458751352,0.90061086,64763.0,64762.0,0.01528833]
[1722458751779,1.20942886,64763.0,64762.0,0.01528833]
[1722458751985,1.37651492,64763.0,64762.0,0.01528833]
[1722458752197,1.51480116,64763.0,64762.0,0.01528833]
[1722458752466,1.52480116,64763.0,64762.0,0.01528833]
[1722458752895,1.66430116,64763.0,64762.0,0.01628833]
[1722458753099,1.66430116,64763.0,64762.0,0.01528833]
[1722458753319,2.25267088,64763.0,64762.0,0.002]
[1722458753560,2.25267088,64763.0,64747.0,0.01528833]
[1722458753561,0.851422,64748.0,64747.0,0.01528833]
[1722458753768,0.93089845,64748.0,64744.0,0.01528833]
[1722458753968,0.164452,64745.0,64744.0,0.01528833]
[1722458754174,0.90503594,64745.0,64744.0,0.01528833]
[1722458754376,1.20393994,64745.0,64744.0,0.01528833]
[1722458754578,1.51284394,64745.0,64744.0,0.01528833]
[1722458754752,1.42977415,64745.0,64744.0,0.01528833]
[1722458755167,1.51167893,64745.0,64744.0,0.01528833]
[1722458756132,1.52567893,64745.0,64744.0,0.01528833]
[1722458756352,1.45777415,64745.0,64744.0,0.01628833]
[1722458756652,1.54010003,64745.0,64744.0,0.01628833]
[1722458756832,1.44377415,64745.0,64744.0,0.01528833]
[1722458757034,1.44377415,64745.0,64744.0,0.01628833]
[1722458757254,1.45777415,64745.0,64744.0,0.01628833]
[1722458757669,1.39281592,64745.0,64744.0,0.01628833]
[1722458758074,1.54097782,64745.0,64744.0,0.01628833]
[1722458758272,1.55025618,64745.0,64744.0,0.01628833]
[1722458758569,1.59548316,64745.0,64744.0,0.01628833]
[1722458758946,1.51250122,64745.0,64744.0,0.01628833]
[1722458759148,1.59550042,64745.0,64744.0,0.01628833]
[1722458759317,1.60550042,64745.0,64744.0,0.001]
[1722458759533,1.54999902,64745.0,64744.0,0.001]
[1722458759861,1.44735812,64745.0,64744.0,0.001]
[1722458760069,1.52624891,64745.0,64744.0,0.001]
[1722458760271,1.50842964,64745.0,64744.0,0.001]
[1722458760477,2.48660682,64745.0,64744.0,0.001]
[1722458760672,2.48660682,64745.0,64726.0,0.00083]
[1722458760673,1.081465,64727.0,64726.0,0.00083]
[1722458760874,1.66517197,64727.0,64726.0,0.00083]
[1722458761094,1.83844509,64727.0,64726.0,0.00083]
[1722458761295,1.79317604,64727.0,64726.0,0.00083]
[1722458761501,1.49701277,64727.0,64726.0,0.00083]
[1722458761885,1.04573025,64727.0,64726.0,0.00083]
[1722458762013,0.89689525,64727.0,64726.0,0.00083]
[1722458762221,0.90489525,64727.0,64726.0,0.00083]
[1722458762429,0.59590525,64727.0,64726.0,0.00083]
[1722458762716,0.90489525,64727.0,64726.0,0.00083]
[1722458762925,1.21388525,64727.0,64726.0,0.00083]
[1722458763336,1.82358518,64727.0,64726.0,0.00083]
[1722458763755,1.85458518,64727.0,64726.0,0.00083]
[1722458763971,0.92201646,64727.0,64715.0,0.01561967]
[1722458764175,0.463563,64716.0,64715.0,0.01561967]
[1722458764391,1.20606725,64716.0,64715.0,0.01561967]
[1722458765943,1.20806725,64716.0,64715.0,0.01561967]
[1722458766147,1.67266097,64716.0,64715.0,0.01561967]
[1722458766566,1.98528274,64716.0,64715.0,0.01561967]
[1722458766948,1.81706097,64716.0,64715.0,0.00083]
[1722458767062,1.98518982,64716.0,64715.0,0.00083]
[1722458767266,2.39423182,64716.0,64715.0,0.00083]
[1722458767469,2.48846674,64716.0,64715.0,0.00083]
[1722458767669,2.59899392,64716.0,64715.0,0.00083]
[1722458767888,2.14941615,64716.0,64715.0,0.00083]
[1722458768092,1.90906097,64716.0,64715.0,0.00083]
[1722458768315,1.60001897,64716.0,64715.0,0.00083]
[1722458768531,1.56581897,64716.0,64715.0,0.00083]
[1722458768755,1.58581897,64716.0,64715.0,0.00083]
[1722458768956,0.61598325,64716.0,64715.0,0.00083]
[1722458769852,0.182521,64716.0,64715.0,0.00083]
[1722458770082,0.49370861,64716.0,64715.0,0.00083]
[1722458770325,0.491563,64716.0,64715.0,0.00083]
[1722458770527,0.90310943,64716.0,64715.0,0.00083]
[1722458770728,1.63119343,64716.0,64715.0,0.00083]
[1722458770934,1.31215143,64716.0,64715.0,0.00083]
[1722458771314,1.28415143,64716.0,64715.0,0.00083]
[1722458771487,1.31215143,64716.0,64715.0,0.00083]
[1722458771958,1.29815143,64716.0,64715.0,0.00083]
[1722458772109,1.31215143,64716.0,64715.0,0.00083]
[1722458772313,1.29815143,64716.0,64715.0,0.00083]
[1722458772884,1.31215143,64716.0,64715.0,0.00083]
[1722458773172,1.77674515,64716.0,64715.0,0.00083]
[1722458773539,1.75674515,64716.0,64715.0,0.00083]
[1722458773739,1.77674515,64716.0,64715.0,0.00083]
[1722458773957,1.400774,64712.0,64711.0,0.00869]
[1722458774158,2.01323015,64712.0,64711.0,0.00869]
[1722458774319,2.11323015,64712.0,64711.0,0.00869]
[1722458774519,2.09323015,64712.0,64711.0,0.00869]
[1722458774742,2.11323015,64712.0,64711.0,0.00869]
[1722458775394,2.12723015,64712.0,64711.0,0.00869]
[1722458775797,1.84613015,64712.0,64711.0,0.00869]
[1722458776162,1.81813015,64712.0,64711.0,0.00869]
[1722458776601,1.83213015,64712.0,64711.0,0.00869]
[1722458777465,2.12123015,64712.0,64711.0,0.00869]
[1722458777779,2.13123015,64712.0,64711.0,0.00869]
[1722458778148,2.12123015,64712.0,64711.0,0.00869]
[1722458778702,2.30015348,64712.0,64711.0,0.00869]
[1722458778835,2.21494584,64712.0,64711.0,0.00869]
[1722458779037,2.14067218,64712.0,64711.0,0.00869]
[1722458779232,2.15067218,64712.0,64711.0,0.00869]
[1722458779440,2.14067218,64712.0,64711.0,0.00869]
[1722458779615,2.21798423,64712.0,64711.0,0.00869]
[1722458779818,2.12366197,64712.0,64711.0,0.00869]
[1722458780669,1.53950097,64712.0,64711.0,0.00869]
[1722458780871,1.62387453,64712.0,64711.0,0.00869]
[1722458781881,1.77054612,64712.0,64711.0,0.00869]
[1722458782995,1.68617256,64712.0,64711.0,0.00869]
[1722458783141,1.77025607,64712.0,64711.0,0.00869]
[1722458783549,1.68617256,64712.0,64711.0,0.00869]
[1722458783723,1.7704339,64712.0,64711.0,0.00869]
[1722458784141,1.081797,64707.0,64706.0,0.00083]
[1722458784516,1.40892873,64707.0,64706.0,0.00083]
[1722458785365,1.98755337,64707.0,64706.0,0.00083]
[1722458785571,2.04594032,64707.0,64706.0,0.00083]
[1722458785773,2.05994032,64707.0,64706.0,0.00083]
[1722458786179,2.05986899,64707.0,64706.0,0.00083]
[1722458787792,1.60123227,64707.0,64706.0,0.00083]
[1722458789257,1.51705434,64707.0,64706.0,0.00083]
[1722458789390,1.60135503,64707.0,64706.0,0.00083]
[1722458791162,1.75090675,64707.0,64706.0,0.00083]
[1722458791516,2.34690186,64707.0,64706.0,0.00083]
[1722458791719,2.50650556,64707.0,64706.0,0.00083]
[1722458791923,2.50650556,64707.0,64703.0,0.0087]
[1722458791924,1.472745,64704.0,64703.0,0.0087]
[1722458792122,2.66004768,64704.0,64703.0,0.0087]
[1722458792443,2.77741718,64704.0,64703.0,0.0087]
[1722458792602,2.96701941,64704.0,64703.0,0.0087]
[1722458792803,2.76741718,64704.0,64703.0,0.0087]
[1722458793015,2.56316637,64704.0,64703.0,0.0087]
[1722458793213,2.51136637,64704.0,64703.0,0.0087]
[1722458793466,2.50136637,64704.0,64703.0,0.0087]
[1722458794063,2.50136637,64704.0,64689.0,0.01478967]
[1722458794064,0.772915,64690.0,64689.0,0.01478967]
[1722458794284,1.16343652,64690.0,64689.0,0.01478967]
[1722458794438,0.463756,64689.0,64685.0,0.0087]
[1722458794638,0.85479521,64689.0,64685.0,0.0087]
[1722458794843,0.54562421,64689.0,64685.0,0.0087]
[1722458795586,0.54571127,64689.0,64685.0,0.0087]
[1722458795786,0.85488227,64689.0,64685.0,0.0087]
[1722458796386,1.16405327,64689.0,64685.0,0.0087]
[1722458796527,0.85488227,64689.0,64685.0,0.0087]
[1722458796734,0.54571127,64689.0,64685.0,0.0087]
[1722458796942,0.39112627,64689.0,64685.0,0.0087]
[1722458798151,0.09549422,64689.0,64688.0,0.17788721]
[1722458798282,0.15735249,64689.0,64688.0,0.17788721]
[1722458798627,0.09549422,64689.0,64688.0,0.17788721]
[1722458799865,0.09549422,64689.0,64688.0,0.1478]
[1722458800472,0.15732927,64689.0,64688.0,0.1478]
[1722458800676,0.09549422,64689.0,64688.0,0.29735172]
[1722458800880,0.79291301,64715.0,64695.0,0.15457]
[1722458801086,0.79291301,64715.0,64699.0,0.0791]
[1722458801087,0.09670332,64706.0,64699.0,0.0791]
[1722458801293,0.09670332,64705.0,64703.0,0.07476412]
[1722458801581,0.00091301,64715.0,64703.0,0.07476412]
[1722458801582,0.00091301,64715.0,64705.0,0.1391]
[1722458801800,0.00091301,64715.0,64704.0,0.14955172]
[1722458801801,0.05614751,64714.0,64707.0,0.0784]
[1722458802011,0.05614751,64714.0,64713.0,0.2432]
[1722458802136,0.05614751,64714.0,64713.0,0.32283893]
[1722458802589,0.00091301,64715.0,64713.0,0.42283893]
[1722458802822,0.00091301,64715.0,64714.0,0.29275172]
[1722458803431,0.00091301,64715.0,64714.0,0.29584197]
[1722458803632,0.00091301,64715.0,64714.0,0.31884197]
[1722458804245,0.00091301,64715.0,64714.0,0.40360609]
[1722458804489,0.44858472,64742.0,64721.0,0.1]
[1722458804662,0.44858472,64742.0,64724.0,0.0662]
[1722458804663,0.15122377,64741.0,64724.0,0.0662]
[1722458804888,0.44858472,64742.0,64725.0,0.14955172]
[1722458804889,0.21269984,64740.0,64725.0,0.14955172]
[1722458805069,0.12824575,64739.0,64725.0,0.14955172]
[1722458805269,0.06676968,64738.0,64725.0,0.14955172]
[1722458805493,0.06676968,64737.0,64725.0,0.14955172]
[1722458805694,0.06676968,64736.0,64725.0,0.14955172]
[1722458805876,0.06676968,64735.0,64725.0,0.14955172]
[1722458806075,0.154466,64739.0,64725.0,0.14955172]
[1722458806076,0.06891529,64734.0,64725.0,0.14955172]
[1722458806395,0.013,64741.0,64725.0,0.14955172]
[1722458806396,0.06891529,64733.0,64725.0,0.14955172]
[1722458806606,0.06891529,64733.0,64724.0,0.0662]
[1722458806607,0.06676968,64732.0,64724.0,0.0662]
[1722458806855,0.00214561,64731.0,64724.0,0.0662]
[1722458806965,0.06676968,64730.0,64724.0,0.0662]
[1722458807166,0.06676968,64729.0,64725.0,0.14955172]
[1722458807389,0.007,64738.0,64730.0,0.061]
[1722458807595,0.007,64738.0,64732.0,0.061]
[1722458807799,0.474,64752.0,64733.0,0.14955172]
[1722458808000,0.002,64736.0,64733.0,0.15264105]
[1722458808232,0.002,64736.0,64734.0,0.105]
[1722458808588,0.44858472,64758.0,64740.0,0.0645]
[1722458808704,0.44858472,64758.0,64741.0,0.14955172]
[1722458808705,0.07490282,64757.0,64741.0,0.14955172]
[1722458808912,0.07490282,64757.0,64741.0,0.15264073]
[1722458809114,0.07490282,64756.0,64742.0,0.0645]
[1722458809342,0.07476412,64767.0,64744.0,0.0645]
[1722458809547,0.07476412,64760.0,64747.0,0.0645]
[1722458809756,0.308842,64758.0,64748.0,0.14955172]
[1722458809975,0.07476412,64753.0,64747.0,0.09458721]
[1722458810195,0.00214561,64752.0,64747.0,0.09458721]
[1722458810456,0.154444,64748.0,64747.0,0.09458721]
[1722458810657,0.154442,64750.0,64747.0,0.09458721]
[1722458810857,0.00214561,64749.0,64747.0,0.09458721]
[1722458811293,0.15658761,64749.0,64747.0,0.09458721]
[1722458811913,0.463333,64748.0,64747.0,0.03008721]
[1722458812311,0.463333,64748.0,64747.0,0.03108721]
[1722458812312,0.458333,64748.0,64747.0,0.03108721]
[1722458812488,0.767222,64748.0,64747.0,0.03108721]
[1722458812889,0.458333,64748.0,64747.0,0.03108721]
[1722458813114,0.458333,64748.0,64715.0,0.0648]
[1722458813115,0.772425,64731.0,64715.0,0.0648]
[1722458813320,0.07476412,64722.0,64715.0,0.0648]
[1722458813551,0.772592,64717.0,64716.0,0.0015542]
[1722458813753,0.463555,64717.0,64716.0,0.0015542]
[1722458813970,0.309063,64712.0,64706.0,0.0015542]
[1722458814199,0.00214561,64711.0,64706.0,0.0015542]
[1722458814637,0.154538,64709.0,64706.0,0.0015542]
[1722458814836,0.154542,64707.0,64706.0,0.0015542]
[1722458815038,0.463627,64707.0,64706.0,0.0015542]
[1722458815252,0.12010666,64722.0,64689.0,0.1]
[1722458815253,0.006,64712.0,64697.0,0.0634]
[1722458815476,0.309089,64707.0,64697.0,0.0634]
[1722458815645,0.154553,64703.0,64697.0,0.0634]
[1722458815845,0.00214561,64703.0,64697.0,0.0634]
[1722458816346,0.309109,64702.0,64697.0,0.0634]
[1722458816550,0.00214561,64701.0,64697.0,0.0634]
[1722458817279,0.00214561,64701.0,64697.0,0.0664]
[1722458817610,0.15769761,64703.0,64697.0,0.0664]
[1722458818012,0.00314561,64703.0,64697.0,0.0674]
[1722458818217,0.15769761,64703.0,64697.0,0.0674]
[1722458818423,0.31225061,64703.0,64697.0,0.0674]
[1722458818624,0.309111,64702.0,64697.0,0.0644]
[1722458818831,0.309111,64702.0,64697.0,0.0684]
[1722458818832,0.154562,64699.0,64697.0,0.0684]
[1722458819155,0.309085,64707.0,64697.0,0.0684]
[1722458819156,0.154532,64712.0,64698.0,0.14955172]
[1722458819507,0.001,64703.0,64698.0,0.14955172]
[1722458820068,0.001,64699.0,64698.0,0.14955172]
[1722458820925,0.001,64699.0,64698.0,0.15264276]
[1722458821342,0.002,64699.0,64698.0,0.15364276]
[1722458821496,0.002,64699.0,64698.0,0.15055172]
[1722458821695,0.002,64699.0,64698.0,0.15455172]
[1722458821900,0.001,64699.0,64698.0,0.15055172]
[1722458822341,0.002,64699.0,64698.0,0.15455172]
[1722458822761,0.001,64699.0,64698.0,0.16290443]
[1722458823206,0.002,64699.0,64698.0,0.16390443]
[1722458823636,0.001,64699.0,64698.0,0.16290443]
[1722458823848,0.001,64699.0,64698.0,0.47092337]
[1722458824077,0.001,64699.0,64698.0,0.41065937]
[1722458824078,0.002,64699.0,64698.0,0.41065937]
[1722458824625,0.002,64699.0,64698.0,0.56022337]
[1722458824626,0.001,64699.0,64698.0,0.56022337]
[1722458824817,0.00214561,64720.0,64707.0,0.1]
[1722458825039,0.00214561,64720.0,64708.0,0.14955172]
[1722458825242,0.309005,64724.0,64708.0,0.14955172]
[1722458825466,0.44858472,64733.0,64708.0,0.14955172]
[1722458825467,0.308961,64733.0,64715.0,0.0015542]
[1722458825704,0.21918688,64732.0,64718.0,0.0656]
[1722458826015,0.07476412,64726.0,64720.0,0.0015542]
[1722458826299,0.772545,64721.0,64720.0,0.0015542]
[1722458826521,0.06045851,64721.0,64712.0,0.0624]
[1722458826731,0.30904,64717.0,64712.0,0.0624]
[1722458826927,0.154526,64714.0,64712.0,0.0624]
[1722458827130,0.00214561,64713.0,64712.0,0.0624]
[1722458827344,0.00214561,64716.0,64709.0,0.0803]
[1722458827543,0.15666761,64716.0,64710.0,0.14955172]
[1722458827694,0.15666761,64716.0,64712.0,0.001]
[1722458827895,0.15666761,64716.0,64712.0,0.15055172]
[1722458827896,0.00214561,64716.0,64712.0,0.15055172]
[1722458828121,0.011,64721.0,64712.0,0.15055172]
[1722458828122,0.011,64721.0,64713.0,0.14955172]
[1722458828346,0.011,64721.0,64718.0,0.001]
[1722458828547,0.011,64721.0,64719.0,0.21465172]
[1722458828945,0.154496,64727.0,64719.0,0.21465172]
[1722458829146,0.00214561,64729.0,64719.0,0.21465172]
[1722458829710,0.002,64721.0,64719.0,0.21465172]
[1722458829879,0.38379112,64720.0,64711.0,0.0649]
[1722458830079,0.00214561,64719.0,64712.0,0.14955172]
[1722458830225,0.00214561,64726.0,64712.0,0.14955172]
[1722458830648,0.06950165,64725.0,64712.0,0.14955172]
[1722458830847,0.00214561,64724.0,64713.0,0.00134151]
[1722458831051,0.012,64727.0,64714.0,0.14955172]
[1722458831224,0.06982281,64726.0,64717.0,0.1]
[1722458831428,0.154469,64738.0,64718.0,0.29344174]
[1722458831632,0.22695393,64737.0,64718.0,0.29344174]
[1722458831879,0.009,64727.0,64726.0,0.1408]
[1722458832119,0.07690973,64745.0,64726.0,0.29035172]
[1722458832319,0.23137215,64744.0,64727.0,0.15264126]
[1722458832466,0.07691815,64743.0,64727.0,0.15264126]
[1722458832650,0.79203129,64748.0,64727.0,0.15264126]
[1722458832651,0.07691815,64742.0,64727.0,0.15264126]
[1722458832847,0.00930183,64755.0,64733.0,0.1]
[1722458833048,0.154426,64756.0,64745.0,0.0648]
[1722458833247,0.00214561,64759.0,64745.0,0.0648]
[1722458833248,0.154419,64759.0,64746.0,0.14955172]
[1722458833496,0.00214561,64758.0,64746.0,0.22555172]
[1722458833752,0.154431,64754.0,64746.0,0.22555172]
[1722458833951,0.00214561,64753.0,64746.0,0.22555172]
[1722458834084,0.00214561,64753.0,64737.0,0.1]
[1722458834428,0.00191301,64747.0,64739.0,0.0648]
[1722458834746,0.00191301,64747.0,64740.0,0.15110592]
[1722458834945,0.00191301,64747.0,64740.0,0.14955172]
[1722458835145,0.00491301,64747.0,64740.0,0.14955172]
[1722458835793,0.00791301,64747.0,64741.0,0.00118919]
[1722458836043,0.00791301,64747.0,64742.0,0.14955172]
[1722458836293,0.308856,64756.0,64738.0,0.076]
[1722458836294,0.00957,64771.0,64760.0,0.154416]
[1722458836549,0.00957,64771.0,64765.0,0.1]
[1722458836760,0.00957,64771.0,64766.0,0.0878]
[1722458836968,0.00957,64771.0,64766.0,0.1648]
[1722458836969,0.00091301,64768.0,64766.0,0.1648]
[1722458837186,0.00091301,64768.0,64766.0,0.16788767]
[1722458837595,0.00091301,64768.0,64767.0,0.14955172]
[1722458837799,0.01191301,64768.0,64767.0,0.14955172]
[1722458838003,0.01191301,64768.0,64767.0,0.15263926]
[1722458838616,0.01191301,64768.0,64767.0,0.14955172]
[1722458838824,0.01291301,64768.0,64767.0,0.14955172]
[1722458839023,0.00091301,64768.0,64767.0,0.14955172]
[1722458839352,0.00191301,64768.0,64767.0,0.15855172]
[1722458840683,0.00191301,64768.0,64767.0,0.16355172]
[1722458841063,0.00191301,64768.0,64767.0,0.18963927]
[1722458841441,0.00191301,64768.0,64767.0,0.34403827]
[1722458841636,0.00191301,64768.0,64767.0,0.66283727]
[1722458841898,0.00191301,64768.0,64767.0,0.76483607]
[1722458842121,0.00348301,64771.0,64769.0,0.154394]
[1722458842325,0.00348301,64771.0,64770.0,0.54765172]
[1722458842551,0.00348301,64771.0,64770.0,0.59698786]
[1722458842751,0.00348301,64771.0,64770.0,0.24955172]
[1722458843547,0.00348301,64771.0,64770.0,0.25263919]
[1722458843951,0.00348301,64771.0,64770.0,0.24955172]
[1722458844501,0.00348301,64771.0,64770.0,0.14955172]
[1722458844744,0.15787301,64771.0,64770.0,0.0015542]